fUSD/lending_fUSD_20250505
["ID","MTS","AMOUNT","RATE_DAILY","PERIOD"]
[359893666,1746405055284,-450.0,0.00019984,2]
[359893668,1746405055295,-450.0,0.00019984,2]
[359893670,1746405055304,-151.0,0.00019984,2]
[359893672,1746405055313,-151.0,0.00019984,2]
[359893674,1746405055323,-450.0,0.00019984,2]
[359893676,1746405055332,-450.0,0.00019984,2]
[359893678,1746405055342,-562.10119627,0.00019984,2]
[359893680,1746405055351,-450.0,0.00019984,2]
[359893682,1746405055360,-450.0,0.00019984,2]
[359893684,1746405055370,-450.0,0.00019984,2]
[359893686,1746405055379,-450.0,0.00019984,2]
[359893688,1746405055389,-450.0,0.00019984,2]
[359893690,1746405055399,-450.0,0.00019984,2]
[359893692,1746405055408,-490.0,0.00019984,2]
[359893694,1746405055418,-227.28195866,0.00019984,2]
[359893696,1746405055428,-450.0,0.00019984,2]
[359893698,1746405055437,-450.0,0.00019984,2]
[359893700,1746405055447,-510.0,0.00019984,2]
[359893702,1746405055456,-450.0,0.00019984,2]
[359893704,1746405055465,-450.0,0.00019984,2]
[359893706,1746405055474,-450.0,0.00019984,2]
[359893708,1746405055484,-151.0,0.00019984,2]
[359893710,1746405055493,-151.0,0.00019984,2]
[359893712,1746405055503,-450.0,0.00019984,2]
[359893714,1746405055512,-450.0,0.00019984,2]
[359893716,1746405055521,-151.0,0.00019984,2]
[359893717,1746405055530,-151.0,0.00019984,2]
[359893719,1746405055539,-450.0,0.00019984,2]
[359893721,1746405055549,-285.89,0.00019984,2]
[359893723,1746405055558,-490.0,0.00019984,2]
[359893725,1746405055567,-450.0,0.00019984,2]
[359893728,1746405055577,-160.2752072,0.00019984,2]
[359893730,1746405055587,-450.0,0.00019984,2]
[359893732,1746405055596,-450.0,0.00019984,2]
[359893733,1746405055604,-450.0,0.00019984,2]
[359893735,1746405055614,-457.70170811,0.00019984,2]
[359893737,1746405055623,-450.0,0.00019984,2]
[359893739,1746405055632,-450.0,0.00019984,2]
[359893741,1746405055641,-450.0,0.00019984,2]
[359893744,1746405055651,-450.0,0.00019984,2]
[359893746,1746405055660,-261.26470891,0.00019984,2]
[359893748,1746405055670,-450.0,0.00019984,2]
[359893750,1746405055679,-520.78,0.00019984,2]
[359893751,1746405055688,-169.5746165,0.00019984,2]
[359893753,1746405055700,-450.0,0.00019984,2]
[359893756,1746405055710,-450.0,0.00019984,2]
[359893757,1746405055719,-457.91796585,0.00019984,2]
[359893759,1746405055728,-450.0,0.00019984,2]
[359893761,1746405055737,-258.22091403,0.00019984,2]
[359893763,1746405055746,-450.0,0.00019984,2]
[359893765,1746405055756,-450.0,0.00019984,2]
[359893767,1746405055766,-203.95576,0.00019984,2]
[359893769,1746405055776,-450.0,0.00019984,2]
[359893771,1746405055785,-549.73564454,0.00019984,2]
[359893773,1746405055795,-450.0,0.00019984,2]
[359893775,1746405055804,-450.0,0.00019984,2]
[359893777,1746405055814,-450.0,0.00019984,2]
[359893779,1746405055823,-450.0,0.00019984,2]
[359893781,1746405055833,-450.0,0.00019984,2]
[359893783,1746405055842,-450.0,0.00019984,2]
[359893785,1746405055851,-450.0,0.00019984,2]
[359893787,1746405055860,-440.1,0.00019984,2]
[359893789,1746405055869,-450.0,0.00019984,2]
[359893791,1746405055878,-450.0,0.00019984,2]
[359893793,1746405055887,-151.0,0.00019984,2]
[359893795,1746405055896,-151.0,0.00019984,2]
[359893797,1746405055906,-331.78,0.00019984,2]
[359893799,1746405055915,-151.0,0.00019984,2]
[359893801,1746405055924,-450.0,0.00019984,2]
[359893803,1746405055934,-450.0,0.00019984,2]
[359893805,1746405055945,-450.0,0.00019984,2]
[359893807,1746405055954,-260.37,0.00019984,2]
[359893809,1746405055964,-186.21126689,0.00019984,2]
[359893811,1746405055974,-450.0,0.00019984,2]
[359893813,1746405055983,-450.0,0.00019984,2]
[359893815,1746405055992,-151.0,0.00019984,2]
[359893817,1746405056003,-151.0,0.00019984,2]
[359893819,1746405056014,-151.0,0.00019984,2]
[359893821,1746405056024,-151.0,0.00019984,2]
[359893823,1746405056033,-288.14777698,0.00019984,2]
[359893825,1746405056043,-202.648378,0.00019984,2]
[359893827,1746405056053,-450.0,0.00019984,2]
[359893829,1746405056062,-450.0,0.00019984,2]
[359893831,1746405056073,-259.492814,0.00019984,2]
[359893833,1746405056082,-450.0,0.00019984,2]
[359893834,1746405056092,-259.492814,0.00019984,2]
[359893837,1746405056102,-259.492814,0.00019984,2]
[359893839,1746405056111,-259.492814,0.00019984,2]
[359893841,1746405056121,-259.492814,0.00019984,2]
[359893842,1746405056131,-259.492814,0.00019984,2]
[359893844,1746405056140,-450.0,0.00019984,2]
[359893846,1746405056150,-450.0,0.00019984,2]
[359893848,1746405056160,-450.0,0.00019984,2]
[359893850,1746405056171,-335.36301287,0.00019984,2]
[359893852,1746405056180,-500.0,0.00019984,2]
[359893854,1746405056190,-450.0,0.00019984,2]
[359893856,1746405056199,-450.0,0.00019984,2]
[359893858,1746405056208,-500.0,0.00019984,2]
[359893860,1746405056217,-450.0,0.00019984,2]
[359893862,1746405056227,-450.0,0.00019984,2]
[359893864,1746405056237,-450.0,0.00019984,2]
[359893866,1746405056247,-151.0,0.00019984,2]
[359893868,1746405056257,-201.94,0.00019984,2]
[359893870,1746405056267,-450.0,0.00019984,2]
[359893872,1746405056276,-450.0,0.00019984,2]
[359893874,1746405056286,-155.235168,0.00019984,2]
[359893876,1746405056296,-450.0,0.00019984,2]
[359893878,1746405056305,-489.308884,0.00019984,2]
[359893880,1746405056315,-470.0,0.00019984,2]
[359893882,1746405056325,-450.0,0.00019984,2]
[359893884,1746405056335,-489.308884,0.00019984,2]
[359893886,1746405056344,-489.308884,0.00019984,2]
[359893888,1746405056354,-450.0,0.00019984,2]
[359893890,1746405056364,-450.0,0.00019984,2]
[359893892,1746405056373,-450.0,0.00019984,2]
[359893894,1746405056383,-489.308884,0.00019984,2]
[359893896,1746405056392,-489.308884,0.00019984,2]
[359893898,1746405056402,-489.308884,0.00019984,2]
[359893900,1746405056411,-1083.51,0.00019984,2]
[359893902,1746405056421,-450.0,0.00019984,2]
[359893904,1746405056430,-450.0,0.00019984,2]
[359893906,1746405056439,-151.0,0.00019984,2]
[359893908,1746405056449,-151.0,0.00019984,2]
[359893910,1746405056457,-151.0,0.00019984,2]
[359893912,1746405056467,-450.0,0.00019984,2]
[359893914,1746405056477,-151.0,0.00019984,2]
[359893916,1746405056486,-151.0,0.00019984,2]
[359893918,1746405056496,-203.55,0.00019984,2]
[359893920,1746405056505,-151.0,0.00019984,2]
[359893922,1746405056515,-450.0,0.00019984,2]
[359893924,1746405056524,-450.0,0.00019984,2]
[359893926,1746405056533,-450.0,0.00019984,2]
[359893928,1746405056542,-300.0,0.00019984,2]
[359893930,1746405056551,-450.0,0.00019984,2]
[359893932,1746405056560,-203.41,0.00019984,2]
[359893934,1746405056569,-450.0,0.00019984,2]
[359893936,1746405056579,-420.43105714,0.00019984,2]
[359893938,1746405056587,-505.27,0.00019984,2]
[359893940,1746405056597,-450.0,0.00019984,2]
[359893942,1746405056605,-450.0,0.00019984,2]
[359893944,1746405056615,-68.7669944,0.00019984,2]
[359893974,1746405056892,-381.2330056,0.00019984,2]
[359893977,1746405056902,-450.0,0.00019984,2]
[359893979,1746405056912,-450.0,0.00019984,2]
[359893981,1746405056921,-490.0,0.00019984,2]
[359893983,1746405056931,-450.0,0.00019984,2]
[359893985,1746405056941,-450.0,0.00019984,2]
[359893987,1746405056951,-161.62241493,0.00019984,2]
[359893989,1746405056960,-237.260429,0.00019984,2]
[359893991,1746405056970,-237.260429,0.00019984,2]
[359893993,1746405056979,-237.260429,0.00019984,2]
[359893995,1746405056989,-404.96398088,0.00019984,2]
[359893997,1746405057002,-45.03601912,0.00019984,2]
[359893999,1746405057015,-237.260429,0.00019984,2]
[359894001,1746405057024,-25.20694504,0.00019984,2]
[359894003,1746405057035,-424.79305496,0.00019984,2]
[359894005,1746405057047,-237.260429,0.00019984,2]
[359894007,1746405057057,-252.01445959,0.00019984,2]
[359894009,1746405057068,-197.98554041,0.00019984,2]
[359894026,1746405057078,-237.260429,0.00019984,2]
[359894028,1746405057229,-450.0,0.00019984,2]
[359894030,1746405057239,-394.95885455,0.00019984,2]
[359894032,1746405057252,-55.04114545,0.00019984,2]
[359894034,1746405057262,-450.0,0.00019984,2]
[359894036,1746405057271,-450.0,0.00019984,2]
[359894038,1746405057281,-450.0,0.00019984,2]
[359894040,1746405057290,-17.53385455,0.00019984,2]
[359894043,1746405057302,-432.46614545,0.00019984,2]
[359894045,1746405057311,-529.46,0.00019984,2]
[359894047,1746405057320,-450.0,0.00019984,2]
[359894049,1746405057329,-389.89,0.00019984,2]
[359894050,1746405057338,-450.0,0.00019984,2]
[359894052,1746405057347,-450.0,0.00019984,2]
[359894054,1746405057356,-684.67,0.00019984,2]
[359894056,1746405057365,-450.0,0.00019984,2]
[359894058,1746405057375,-450.0,0.00019984,2]
[359894060,1746405057384,-450.0,0.00019984,2]
[359894062,1746405057394,-450.0,0.00019984,2]
[359894064,1746405057403,-579.08,0.00019984,2]
[359894066,1746405057413,-450.0,0.00019984,2]
[359894068,1746405057422,-450.0,0.00019984,2]
[359894070,1746405057431,-450.0,0.00019984,2]
[359894072,1746405057441,-450.0,0.00019984,2]
[359894074,1746405057450,-450.0,0.00019984,2]
[359894076,1746405057460,-169.09523331,0.00019984,2]
[359894082,1746405057502,-280.90476669,0.00019984,2]
[359894084,1746405057511,-450.0,0.00019984,2]
[359894086,1746405057520,-269.09523331,0.00019984,2]
[359894277,1746405059574,-450.0,0.00019899,2]
[359894279,1746405059583,-4409.57233378,0.000199,2]
[359894281,1746405059601,-8090.42766622,0.000199,2]
[359894283,1746405059611,-180.90476669,0.00019984,2]
[359894284,1746405059619,-151.0,0.00019984,2]
[359894286,1746405059629,-222.78293,0.00019984,2]
[359894288,1746405059639,-450.0,0.00019984,2]
[359894290,1746405059648,-450.0,0.00019984,2]
[359894292,1746405059658,-450.0,0.00019984,2]
[359894294,1746405059667,-450.0,0.00019984,2]
[359894295,1746405059677,-450.0,0.00019984,2]
[359894297,1746405059686,-560.34,0.00019984,2]
[359894299,1746405059696,-450.0,0.00019984,2]
[359894301,1746405059705,-450.0,0.00019984,2]
[359894302,1746405059715,-450.0,0.00019984,2]
[359894304,1746405059725,-584.19899377,0.00019984,2]
[359894306,1746405059735,-450.0,0.00019984,2]
[359894308,1746405059745,-528.2458038,0.00019984,2]
[359894310,1746405059754,-450.0,0.00019984,2]
[359894312,1746405059763,-450.0,0.00019984,2]
[359894313,1746405059773,-262.971646,0.00019984,2]
[359894315,1746405059782,-450.0,0.00019984,2]
[359894317,1746405059792,-450.0,0.00019984,2]
[359894319,1746405059801,-450.0,0.00019984,2]
[359894321,1746405059811,-450.0,0.00019984,2]
[359894323,1746405059821,-450.0,0.00019984,2]
[359894324,1746405059830,-450.0,0.00019984,2]
[359894326,1746405059840,-955.46,0.00019984,2]
[359894328,1746405059850,-450.0,0.00019984,2]
[359894330,1746405059859,-500.0,0.00019984,2]
[359894332,1746405059869,-151.0,0.00019984,2]
[359894334,1746405059878,-151.0,0.00019984,2]
[359894336,1746405059888,-151.0,0.00019984,2]
[359894337,1746405059897,-450.0,0.00019984,2]
[359894339,1746405059907,-206.849874,0.00019984,2]
[359894341,1746405059917,-206.849874,0.00019984,2]
[359894343,1746405059926,-9867.57,0.00019984,2]
[359894345,1746405059936,-206.849874,0.00019984,2]
[359894347,1746405059945,-422.47,0.00019984,2]
[359894349,1746405059954,-450.0,0.00019984,2]
[359894350,1746405059964,-206.849874,0.00019984,2]
[359894352,1746405059974,-206.849874,0.00019984,2]
[359894354,1746405059983,-450.0,0.00019984,2]
[359894356,1746405059995,-206.849874,0.00019984,2]
[359894358,1746405060005,-151.0,0.00019984,2]
[359894360,1746405060020,-1243.26,0.00019984,2]
[359894362,1746405060030,-1243.26,0.00019984,2]
[359894364,1746405060040,-151.0,0.00019984,2]
[359894365,1746405060050,-1243.26,0.00019984,2]
[359894367,1746405060062,-450.0,0.00019984,2]
[359894369,1746405060072,-151.0,0.00019984,2]
[359894371,1746405060082,-450.0,0.00019984,2]
[359894373,1746405060092,-450.0,0.00019984,2]
[359894375,1746405060102,-526.08533867,0.00019984,2]
[359894376,1746405060111,-165.590458,0.00019984,2]
[359894378,1746405060121,-200.42588578,0.00019984,2]
[359894380,1746405060130,-450.0,0.00019984,2]
[359894393,1746405060259,-450.0,0.00019984,2]
[359894395,1746405060272,-450.0,0.00019984,2]
[359894396,1746405060281,-1000.42,0.00019984,2]
[359894398,1746405060291,-450.0,0.00019984,2]
[359894400,1746405060300,-324.84612389,0.00019984,2]
[359894402,1746405060309,-450.0,0.00019984,2]
[359894404,1746405060318,-322.625441,0.00019984,2]
[359894405,1746405060327,-322.625441,0.00019984,2]
[359894407,1746405060337,-322.625441,0.00019984,2]
[359894409,1746405060346,-555.19635294,0.00019984,2]
[359894411,1746405060355,-322.625441,0.00019984,2]
[359894413,1746405060364,-1250.92,0.00019984,2]
[359894415,1746405060373,-322.625441,0.00019984,2]
[359894416,1746405060383,-322.625441,0.00019984,2]
[359894418,1746405060392,-450.0,0.00019984,2]
[359894420,1746405060402,-450.0,0.00019984,2]
[359894422,1746405060411,-450.0,0.00019984,2]
[359894424,1746405060420,-293.35,0.00019984,2]
[359894426,1746405060429,-435.65125443,0.00019984,2]
[359894427,1746405060437,-450.0,0.00019984,2]
[359894429,1746405060447,-450.0,0.00019984,2]
[359894431,1746405060456,-151.0,0.00019984,2]
[359894433,1746405060465,-151.0,0.00019984,2]
[359894435,1746405060475,-151.0,0.00019984,2]
[359894437,1746405060484,-151.0,0.00019984,2]
[359894438,1746405060493,-460.04,0.00019984,2]
[359894440,1746405060502,-460.04,0.00019984,2]
[359894442,1746405060511,-460.04,0.00019984,2]
[359894444,1746405060520,-450.0,0.00019984,2]
[359894446,1746405060530,-304.17,0.00019984,2]
[359894447,1746405060539,-450.0,0.00019984,2]
[359894449,1746405060549,-450.0,0.00019984,2]
[359894451,1746405060559,-275.13,0.00019984,2]
[359894453,1746405060568,-450.0,0.00019984,2]
[359894455,1746405060577,-278.15,0.00019984,2]
[359894457,1746405060587,-259.39986697,0.00019984,2]
[359894458,1746405060596,-232.67,0.00019984,2]
[359894460,1746405060605,-450.0,0.00019984,2]
[359894462,1746405060614,-1811.87,0.00019984,2]
[359894464,1746405060626,-1811.87,0.00019984,2]
[359894466,1746405060635,-1811.87,0.00019984,2]
[359894468,1746405060645,-151.0,0.00019985,2]
[359894470,1746405060654,-151.0,0.00019985,2]
[359894472,1746405060663,-217.98698,0.00019985,2]
[359894473,1746405060672,-151.0,0.00019985,2]
[359894475,1746405060682,-151.0,0.00019985,2]
[359894477,1746405060691,-151.0,0.00019985,2]
[359894479,1746405060700,-151.0,0.00019985,2]
[359894481,1746405060709,-168.483316,0.00019985,2]
[359894483,1746405060720,-151.0,0.00019985,2]
[359894484,1746405060730,-183.416529,0.00019985,2]
[359894486,1746405060739,-183.416529,0.00019985,2]
[359894488,1746405060748,-183.416529,0.00019985,2]
[359894490,1746405060758,-183.416529,0.00019985,2]
[359894492,1746405060767,-151.0,0.00019985,2]
[359894494,1746405060776,-233.008024,0.00019985,2]
[359894496,1746405060786,-151.0,0.00019985,2]
[359894497,1746405060795,-151.0,0.00019985,2]
[359894499,1746405060804,-151.0,0.00019985,2]
[359894501,1746405060813,-151.0,0.00019985,2]
[359894503,1746405060822,-151.0,0.00019985,2]
[359894505,1746405060831,-151.0,0.00019985,2]
[359894506,1746405060840,-151.0,0.00019985,2]
[359894507,1746405060850,-151.0,0.00019985,2]
[359894508,1746405060860,-151.0,0.00019985,2]
[359894509,1746405060869,-151.0,0.00019985,2]
[359894510,1746405060878,-167.998837,0.00019985,2]
[359894511,1746405060888,-167.998837,0.00019985,2]
[359894512,1746405060897,-151.0,0.00019985,2]
[359894513,1746405060907,-151.0,0.00019985,2]
[359894514,1746405060916,-151.0,0.00019985,2]
[359894515,1746405060926,-152.762808,0.00019985,2]
[359894516,1746405060935,-151.0,0.00019985,2]
[359894517,1746405060945,-151.0,0.00019985,2]
[359894518,1746405060954,-151.0,0.00019985,2]
[359894519,1746405060965,-151.0,0.00019985,2]
[359894520,1746405060975,-151.0,0.00019985,2]
[359894521,1746405060984,-151.0,0.00019985,2]
[359894522,1746405060994,-151.0,0.00019985,2]
[359894524,1746405061005,-151.0,0.00019985,2]
[359894525,1746405061017,-151.0,0.00019985,2]
[359894527,1746405061026,-151.0,0.00019985,2]
[359894529,1746405061035,-151.0,0.00019985,2]
[359894531,1746405061045,-185.909025,0.00019985,2]
[359894533,1746405061054,-151.0,0.00019985,2]
[359894535,1746405061064,-209.457024,0.00019985,2]
[359894537,1746405061073,-183.408988,0.00019985,2]
[359894539,1746405061083,-151.0,0.00019985,2]
[359894541,1746405061092,-214.801488,0.00019985,2]
[359894543,1746405061101,-151.0,0.00019985,2]
[359894545,1746405061110,-186.675718,0.00019985,2]
[359894547,1746405061119,-151.0,0.00019985,2]
[359894549,1746405061129,-151.0,0.00019985,2]
[359894551,1746405061137,-151.0,0.00019985,2]
[359894553,1746405061147,-151.0,0.00019985,2]
[359894555,1746405061156,-151.0,0.00019985,2]
[359894557,1746405061165,-228.775346,0.00019985,2]
[359894559,1746405061175,-151.0,0.00019985,2]
[359894561,1746405061184,-151.0,0.00019985,2]
[359894563,1746405061195,-259.492814,0.00019985,2]
[359894565,1746405061205,-259.492814,0.00019985,2]
[359894567,1746405061214,-259.492814,0.00019985,2]
[359894569,1746405061223,-259.492814,0.00019985,2]
[359894571,1746405061232,-433.71,0.00019985,2]
[359894573,1746405061242,-489.308884,0.00019985,2]
[359894575,1746405061251,-489.308884,0.00019985,2]
[359894577,1746405061261,-489.308884,0.00019985,2]
[359894579,1746405061271,-489.308879,0.00019985,2]
[359894581,1746405061282,-151.0,0.00019985,2]
[359894583,1746405061291,-151.0,0.00019985,2]
[359894585,1746405061301,-228.096204,0.00019985,2]
[359894587,1746405061310,-450.0,0.00019985,2]
[359894589,1746405061319,-450.0,0.00019985,2]
[359894590,1746405061329,-450.0,0.00019985,2]
[359894593,1746405061339,-230.40921207,0.00019985,2]
[359894595,1746405061349,-450.0,0.00019985,2]
[359894597,1746405061359,-450.0,0.00019985,2]
[359894599,1746405061368,-252.23894133,0.00019985,2]
[359894601,1746405061377,-1235.19,0.00019985,2]
[359894603,1746405061388,-1235.19,0.00019985,2]
[359894605,1746405061398,-1235.19,0.00019985,2]
[359894607,1746405061407,-237.260429,0.00019985,2]
[359894609,1746405061417,-237.260429,0.00019985,2]
[359894611,1746405061427,-237.260429,0.00019985,2]
[359894613,1746405061436,-237.260429,0.00019985,2]
[359894615,1746405061445,-450.0,0.00019985,2]
[359894617,1746405061454,-450.0,0.00019985,2]
[359894619,1746405061464,-450.0,0.00019985,2]
[359894620,1746405061473,-11684.14520383,0.00019985,2]
[359894624,1746405061494,-5151.20245347,0.00019985,2]
[359894626,1746405061503,-450.0,0.00019985,2]
[359894628,1746405061513,-450.0,0.00019985,2]
[359894630,1746405061523,-450.0,0.00019985,2]
[359894631,1746405061532,-2755.77,0.00019985,2]
[359894632,1746405061541,-2755.77,0.00019985,2]
[359894633,1746405061551,-2755.77,0.00019985,2]
[359894634,1746405061559,-596.51,0.00019985,2]
[359894635,1746405061569,-450.0,0.00019985,2]
[359894636,1746405061578,-450.0,0.00019985,2]
[359894637,1746405061587,-450.0,0.00019985,2]
[359894638,1746405061596,-2658.88779632,0.00019985,2]
[359894640,1746405061613,-5654.25254578,0.00019985,2]
[359894641,1746405061621,-151.0,0.00019985,2]
[359894643,1746405061631,-206.849874,0.00019985,2]
[359894644,1746405061640,-1212.43925,0.00019985,2]
[359894645,1746405061649,-206.849865,0.00019985,2]
[359894646,1746405061659,-200.518433,0.00019985,2]
[359894647,1746405061668,-322.625441,0.00019985,2]
[359894648,1746405061677,-322.625441,0.00019985,2]
[359894649,1746405061687,-1113.99,0.00019985,2]
[359894650,1746405061697,-1113.99,0.00019985,2]
[359894651,1746405061706,-1113.99,0.00019985,2]
[359894652,1746405061716,-11144.3918859,0.00019985,2]
[359894653,1746405061726,-450.0,0.00019985,2]
[359894654,1746405061735,-450.0,0.00019985,2]
[359894655,1746405061745,-450.0,0.00019985,2]
[359894656,1746405061754,-614.59,0.00019985,2]
[359894657,1746405061764,-450.0,0.00019985,2]
[359894658,1746405061773,-269.36,0.00019985,2]
[359894659,1746405061783,-450.0,0.00019985,2]
[359894660,1746405061791,-450.0,0.00019985,2]
[359894661,1746405061801,-450.0,0.00019985,2]
[359894663,1746405061810,-1081.0,0.00019985,2]
[359894664,1746405061819,-151.0,0.00019986,2]
[359894666,1746405061829,-151.0,0.00019986,2]
[359894668,1746405061838,-151.0,0.00019986,2]
[359894670,1746405061847,-210.166612,0.00019986,2]
[359894672,1746405061857,-151.0,0.00019986,2]
[359894674,1746405061866,-183.416529,0.00019986,2]
[359894675,1746405061875,-183.416529,0.00019986,2]
[359894676,1746405061885,-151.0,0.00019986,2]
[359894677,1746405061894,-151.0,0.00019986,2]
[359894678,1746405061903,-151.0,0.00019986,2]
[359894679,1746405061912,-268.691356,0.00019986,2]
[359894680,1746405061922,-151.0,0.00019986,2]
[359894681,1746405061931,-151.0,0.00019986,2]
[359894682,1746405061940,-151.0,0.00019986,2]
[359894683,1746405061950,-151.0,0.00019986,2]
[359894684,1746405061959,-288.387244,0.00019986,2]
[359894685,1746405061970,-167.998837,0.00019986,2]
[359894686,1746405061980,-167.998837,0.00019986,2]
[359894687,1746405061990,-167.998837,0.00019986,2]
[359894688,1746405061999,-167.998837,0.00019986,2]
[359894689,1746405062009,-151.0,0.00019986,2]
[359894690,1746405062023,-151.0,0.00019986,2]
[359894691,1746405062032,-151.0,0.00019986,2]
[359894692,1746405062041,-151.0,0.00019986,2]
[359894693,1746405062050,-151.0,0.00019986,2]
[359894694,1746405062061,-171.168576,0.00019986,2]
[359894695,1746405062070,-151.0,0.00019986,2]
[359894696,1746405062079,-151.0,0.00019986,2]
[359894697,1746405062089,-151.0,0.00019986,2]
[359894698,1746405062098,-151.0,0.00019986,2]
[359894699,1746405062107,-151.0,0.00019986,2]
[359894700,1746405062117,-259.492814,0.00019986,2]
[359894701,1746405062127,-46.40172968,0.00019986,2]
[359894702,1746405062244,-1496.22889542,0.00019894,2]
[359894703,1746405062266,-148.29527404,0.00019894,2]
[359894704,1746405062276,-450.0,0.00019899,2]
[359894705,1746405062285,-450.0,0.00019899,2]
[359894706,1746405062295,-213.09108032,0.00019986,2]
[359894707,1746405062304,-2423.09311025,0.00019986,2]
[359894708,1746405062316,-6297.25007068,0.00019986,2]
[359894709,1746405062327,-4203.0,0.00019986,2]
[359894710,1746405111989,23900.0,0.00018992,2]
[359894713,1746405155584,163.56,0.00018988,2]
[359894714,1746405156537,1000.0,0.00018988,2]
[359894715,1746405305953,-167.641254,0.00019726,2]
[359894716,1746405305983,-1.41569504,0.00019726,2]
[359894717,1746405314308,735.861749,0.0003,30]
[359894718,1746405517799,237.88,0.0001894,2]
[359894719,1746405604679,-150.0,0.00019626,2]
[359894720,1746405604702,-23.39357131,0.00019676,2]
[359894721,1746405621632,470.0,0.00027945,30]
[359894722,1746405647815,470.0,0.00027945,30]
[359894723,1746405670598,200.0,0.00018935,2]
[359894724,1746405711244,470.0,0.00029999,30]
[359894725,1746405762861,250.0,0.00017,2]
[359894726,1746405763932,300.0,0.00019,2]
[359894727,1746405884372,-166.66,0.00019512,2]
[359894728,1746405884394,-91.91315118,0.00019676,2]
[359894729,1746405890817,378.96,0.00019,2]
[359895034,1746406123428,410.39,0.00016962,2]
[359895035,1746406123652,410.39,0.00019226,2]
[359895036,1746406145691,169.96,0.00018842,2]
[359895039,1746406179071,20000.0,0.00019,2]
[359895043,1746406231920,-151.0,0.00019676,2]
[359895044,1746406231930,-200.0,0.00019705,2]
[359895045,1746406231939,-150.0,0.00019734,2]
[359895046,1746406231948,-150.0,0.00019735,2]
[359895047,1746406231957,-1000.0,0.0001974,2]
[359895048,1746406231967,-150.0,0.00019742,2]
[359895049,1746406231978,-300.0,0.00019757,2]
[359895050,1746406231988,-1200.0,0.00019757,2]
[359895051,1746406231997,-300.0,0.00019757,2]
[359895052,1746406232006,-1000.0,0.00019758,2]
[359895053,1746406232015,-158.04911336,0.00019758,2]
[359895054,1746406232024,-23165.99323611,0.00019758,2]
[359895055,1746406232040,-831.86817466,0.00019758,2]
[359895056,1746406232131,-27854.7042992,0.00019758,2]
[359895057,1746406232141,-1000.0,0.00019764,2]
[359895058,1746406232151,-150.0,0.00019766,2]
[359895059,1746406232161,-150.0,0.00019775,2]
[359895060,1746406232170,-1000.0,0.00019777,2]
[359895061,1746406232179,-150.0,0.00019777,2]
[359895062,1746406232190,-3334.25337097,0.00019781,2]
[359895063,1746406232201,-150.0,0.00019782,2]
[359895064,1746406232212,-150.0,0.00019792,2]
[359895065,1746406232221,-500.0,0.00019798,2]
[359895066,1746406232231,-500.0,0.00019798,2]
[359895068,1746406232240,-500.0,0.00019798,2]
[359895070,1746406232250,-500.0,0.00019798,2]
[359895071,1746406232259,-500.0,0.00019798,2]
[359895073,1746406232268,-500.0,0.00019798,2]
[359895075,1746406232278,-500.0,0.00019798,2]